bitfinex/quotes_ETHUSD_20250123
["timestamp","ask_amount","ask_price","bid_price","bid_amount"]
[1737599673733,0.65431333,3214.3,3213.7,2.0]
[1737599673930,0.65431333,3214.3,3213.7,5.0]
[1737599674360,0.6154219,3214.3,3213.7,5.0]
[1737599674853,3.87314,3214.8,3214.1,2.0]
[1737599675149,3.11073,3214.7,3214.1,2.0]
[1737599675555,3.87314,3214.8,3214.1,2.0]
[1737599676054,0.03888853,3214.7,3214.1,2.0]
[1737599676220,0.6251011,3214.6,3214.1,2.0]
[1737599677446,3.87314,3214.8,3214.1,2.0]
[1737599677645,0.7625,3214.8,3214.1,5.11128]
[1737599678623,3.11022,3215.2,3214.3,3.92979]
[1737599678624,0.61327974,3214.7,3214.3,3.92979]
[1737599678844,0.61327974,3214.7,3214.5,2.0]
[1737599679047,1.40617974,3214.7,3214.0,35.0]
[1737599679246,3.11107,3214.4,3213.7,2.0]
[1737599679555,0.03889203,3214.3,3213.7,2.0]
[1737599679734,3.11107,3214.4,3213.7,2.0]
[1737599679936,3.14998203,3214.3,3213.6,0.8187]
[1737599680263,3.14998203,3214.3,3213.6,2.6187]
[1737599680662,6.22188,3214.5,3213.7,3.0]
[1737599680866,3.14997203,3214.4,3213.7,3.0]
[1737599681167,3.11108,3214.4,3213.7,3.0]
[1737599681349,0.03889203,3214.3,3213.7,3.0]
[1737599681528,3.11105,3214.4,3213.7,3.0]
[1737599681725,3.14994203,3214.4,3213.7,3.0]
[1737599681925,3.11105,3214.4,3213.7,3.0]
[1737599682835,3.15000204,3214.3,3213.7,3.0]
[1737599683182,3.11119,3214.2,3213.6,2.0]
[1737599683475,3.11157,3213.9,3213.1,0.7974]
[1737599683704,3.15048824,3213.8,3213.1,0.7974]
[1737599683874,3.15048824,3213.8,3213.0,0.55]
[1737599684178,0.03889824,3213.8,3213.4,2.0]
[1737599684779,0.63346895,3213.7,3213.4,2.0]
[1737599685835,0.03889725,3213.9,3213.4,5.11193]
[1737599686212,3.11126,3214.2,3213.5,0.7974]
[1737599686213,3.11119,3214.2,3213.5,0.7974]
[1737599686354,0.03889725,3214.1,3213.5,0.7974]
[1737599686535,0.66104315,3214.1,3213.5,0.7974]
[1737599687035,0.66104315,3214.1,3213.5,3.90925]
[1737599687876,0.66104315,3214.1,3213.4,2.0]
[1737599687877,3.77240315,3214.1,3213.4,2.0]
[1737599688076,3.11149,3213.9,3213.4,2.0]
[1737599688385,0.03889714,3213.8,3213.4,2.0]
[1737599688981,0.68838932,3213.9,3213.4,2.0]
[1737599689186,3.7335059,3214.1,3213.4,2.0]
[1737599689485,0.6221459,3214.1,3213.4,2.0]
[1737599689650,0.8285,3214.5,3213.8,2.0]
[1737599689977,0.8285,3214.5,3213.8,5.9089]
[1737599689978,3.93948,3214.5,3213.8,5.9089]
[1737599690480,0.8285,3214.5,3213.9,3.11147]
[1737599690685,3.11078,3214.7,3213.9,3.11147]
[1737599690841,3.93874,3215.2,3214.2,2.0]
[1737599691168,3.71804619,3215.0,3214.5,0.7974]
[1737599691338,3.71804619,3215.0,3214.2,5.90858]
[1737599691339,0.03888375,3214.9,3214.2,5.90858]
[1737599691762,0.03888375,3214.9,3214.3,3.11107]
[1737599692945,0.03888375,3214.9,3214.4,3.11099]
[1737599693286,0.60761619,3215.0,3214.6,2.0]
[1737599693490,0.60761619,3215.0,3214.6,5.11079]
[1737599693689,0.60761619,3215.0,3214.7,3.1107]
[1737599693991,0.60761619,3215.0,3214.6,5.11079]
[1737599694953,3.10996,3215.5,3214.6,2.0]
[1737599695162,3.10996,3215.5,3214.8,3.11051]
[1737599696797,3.10996,3215.5,3214.9,3.11051]
[1737599697154,0.61901517,3215.1,3214.7,3.11065]
[1737599697698,3.11051,3214.9,3214.2,3.90858]
[1737599697995,3.11051,3214.9,3214.3,8.11108]
[1737599698505,0.65789754,3215.1,3214.6,2.0]
[1737599699557,0.61901517,3215.1,3214.6,2.0]
[1737599699762,0.65789749,3215.1,3214.6,2.0]
[1737599700307,0.61901517,3215.1,3214.6,5.11073]
[1737599700462,0.61901517,3215.1,3214.6,2.0]
[1737599700988,0.61901517,3215.1,3214.5,5.11088]
[1737599701150,0.65789668,3215.1,3214.6,3.11079]
[1737599701347,0.61901517,3215.1,3214.7,3.11069]
[1737599701553,0.61901517,3215.1,3214.5,5.11083]
[1737599702378,0.61901517,3215.1,3214.6,3.11072]
[1737599702825,0.61901517,3215.1,3214.7,3.11068]
[1737599703899,0.61901517,3215.1,3214.5,5.11083]
[1737599704101,3.11058,3214.9,3214.0,8.81]
[1737599704292,0.85107994,3215.0,3214.0,2.0]
[1737599704293,3.11088,3214.6,3214.0,2.0]
[1737599704486,3.14985907,3214.5,3214.0,2.0]
[1737599704701,3.1112,3214.2,3214.0,2.0]
[1737599704990,0.8122,3214.4,3213.6,2.0]
[1737599705327,3.15001263,3214.3,3213.6,2.0]
[1737599705537,3.11148,3213.9,3213.6,2.0]
[1737599705686,3.15026614,3214.1,3213.6,2.0]
[1737599706011,3.11137,3214.1,3213.6,2.0]
[1737599706218,0.8122,3214.4,3214.0,2.0]
[1737599706741,0.03889034,3214.3,3213.6,3.11177]
[1737599707045,3.11149,3213.9,3213.5,2.0]
[1737599707331,0.8122,3213.9,3213.5,2.0]
[1737599707487,0.85109639,3213.9,3213.5,2.0]
[1737599708410,3.96259639,3213.9,3213.5,2.0]
[1737599708899,3.11161,3213.8,3213.5,2.0]
[1737599709105,0.85109639,3213.9,3213.5,2.0]
[1737599709423,4.38131409,3213.9,3213.5,2.0]
[1737599709624,0.61307448,3214.1,3213.5,2.0]
[1737599709786,0.61307448,3214.1,3213.5,5.11185]
[1737599709990,0.61307448,3214.1,3213.6,3.11174]
[1737599710194,0.61307448,3214.1,3213.5,5.88755]
[1737599710393,0.65196877,3214.1,3213.5,2.0]
[1737599710808,3.76332877,3214.1,3213.5,2.0]
[1737599711009,4.53199365,3214.1,3213.5,5.11186]
[1737599711208,0.61307448,3214.1,3213.6,3.11175]
[1737599711895,0.61307448,3214.1,3214.0,3.88708]
[1737599712098,0.03888704,3214.8,3214.4,2.0]
[1737599712338,3.11072,3214.7,3214.4,2.0]
[1737599713034,0.62776892,3214.7,3214.4,2.0]
[1737599714232,3.1105,3215.0,3214.4,2.0]
[1737599714736,3.11083,3214.6,3214.0,2.0]
[1737599714928,0.85108977,3214.5,3214.0,2.0]
[1737599715233,3.92311,3214.5,3214.0,2.0]
[1737599715632,3.92319,3214.5,3214.0,2.0]
[1737599716224,0.03889151,3214.4,3214.0,2.0]
[1737599716732,3.92319,3214.5,3214.0,2.0]
[1737599717111,0.63216495,3214.3,3214.0,2.0]
[1737599718426,3.11064,3214.8,3214.0,2.0]
[1737599718748,0.39227,3215.0,3214.5,3.1109]
[1737599719073,3.11004,3215.4,3214.8,3.1106]
[1737599719218,0.7659,3215.5,3214.9,3.1105]
[1737599719533,0.7659,3215.8,3214.9,0.7926]
[1737599719722,0.7659,3216.2,3215.5,3.10984]
[1737599719924,0.62805958,3216.1,3215.5,3.10988]
[1737599720140,3.73741958,3216.1,3215.5,3.10988]
[1737599720656,0.62805958,3216.1,3215.6,3.90243]
[1737599720829,0.62805958,3216.1,3215.7,5.0]
[1737599721152,3.10878,3216.7,3216.1,5.10928]
[1737599721366,0.310878,3216.6,3216.1,5.10928]
[1737599721566,0.62065747,3216.6,3216.1,5.10928]
[1737599721766,0.62065747,3216.6,3216.3,3.10915]
[1737599721972,3.87412,3217.3,3216.5,3.10896]
[1737599722272,3.87412,3217.3,3216.7,3.10876]
[1737599722437,3.1083,3217.2,3216.6,2.0]
[1737599722629,3.49572,3217.2,3216.6,2.0]
[1737599722832,3.53457704,3217.2,3216.6,5.10887]
[1737599723076,0.62880601,3217.1,3216.6,5.10887]
[1737599724134,0.03885703,3217.0,3216.3,5.0]
[1737599724455,0.03885703,3217.0,3216.0,2.0]
[1737599724456,0.7659,3216.9,3216.0,2.0]
[1737599724660,0.7659,3216.9,3216.4,2.0]
[1737599724833,0.4503216,3216.9,3216.5,3.10894]
[1737599725035,3.73721601,3217.1,3216.5,3.10894]
[1737599725445,0.62880601,3217.1,3216.6,3.10884]
[1737599725857,3.87402,3217.4,3216.6,3.10884]
[1737599726181,3.87402,3217.4,3216.7,0.7926]
[1737599726478,0.6210234,3217.2,3216.7,0.7926]
[1737599727074,0.6210234,3217.2,3216.7,3.90135]
[1737599727267,0.6210234,3217.2,3216.7,0.7926]
[1737599727449,1.38134974,3217.2,3216.7,0.7926]
[1737599727651,0.6210234,3217.2,3216.8,5.10866]
[1737599727861,0.6210234,3217.2,3216.8,2.0]
[1737599728449,3.10857,3217.0,3216.4,3.0]
[1737599728772,0.03885615,3216.9,3216.3,2.0]
[1737599729072,3.10879,3216.7,3216.3,2.0]
[1737599729242,3.14765134,3216.7,3216.3,2.0]
[1737599729440,0.03886134,3216.7,3216.3,2.0]
[1737599729641,0.03886134,3216.7,3215.9,5.10953]
[1737599729642,3.46240847,3216.7,3215.9,5.10953]
[1737599729869,3.10879,3216.7,3216.0,3.10938]
[1737599730533,3.14781484,3216.6,3215.9,2.0]
[1737599730733,3.10904,3216.5,3215.8,2.0]
[1737599730937,0.03886485,3216.4,3215.8,5.10963]
[1737599731137,0.03886485,3216.4,3215.8,2.0]
[1737599731336,0.60933647,3216.6,3215.8,2.0]
[1737599731537,0.60933647,3216.6,3216.0,3.10937]
[1737599731762,0.60933647,3216.6,3216.2,2.0]
[1737599732149,0.60933647,3216.6,3215.8,3.0]
[1737599732150,0.7659,3216.5,3215.8,2.0]
[1737599732489,3.10954,3215.9,3215.4,2.0]
[1737599732668,3.10937,3216.1,3215.3,2.7926]
[1737599732669,3.14858142,3215.8,3215.3,2.7926]
[1737599732851,0.03887142,3215.8,3215.3,2.7926]
[1737599733048,3.10938,3216.1,3215.3,2.7926]
[1737599733266,3.10938,3216.1,3215.5,3.10991]
[1737599734647,3.10918,3216.3,3215.5,3.10991]
[1737599734845,3.10925,3216.2,3215.5,3.10991]
[1737599735073,3.10906,3216.4,3215.7,5.10968]
[1737599735250,0.62134159,3215.9,3215.7,5.10968]
[1737599735452,0.62134159,3215.9,3215.7,2.0]
[1737599735988,0.62134159,3215.9,3215.3,3.9027]
[1737599735989,0.62134159,3215.9,3215.3,2.7926]
[1737599736172,0.66021309,3215.9,3215.3,2.0]
[1737599736696,3.76977309,3215.9,3215.3,2.0]
[1737599736997,0.66021309,3215.9,3215.3,5.0]
[1737599737294,0.62134159,3215.9,3215.3,5.0]
[1737599737490,0.62134159,3215.9,3215.4,3.11002]
[1737599737871,0.62134159,3215.9,3215.7,5.10967]
[1737599738085,0.62134159,3215.9,3215.7,5.10973]
[1737599738700,0.62134159,3215.9,3215.8,3.10964]
[1737599738993,0.62134159,3215.9,3215.7,2.7549]
[1737599739194,3.10966,3215.8,3215.2,3.1102]
[1737599739497,3.1099,3215.6,3215.1,2.0]
[1737599739902,0.03887458,3215.5,3215.0,3.7549]
[1737599740149,0.03887458,3215.5,3214.9,3.11044]
[1737599740150,3.14880458,3215.5,3214.9,3.11044]
[1737599740398,0.03887597,3215.5,3214.5,2.0]
[1737599740574,3.11056,3214.9,3214.3,3.86594]
[1737599740785,0.82438227,3215.0,3214.3,5.86594]
[1737599740979,3.93482227,3215.0,3214.3,5.86594]
[1737599741181,3.93482227,3215.0,3214.4,3.0]
[1737599741381,3.11055,3214.9,3214.1,3.11126]
[1737599741615,0.03888506,3214.8,3214.3,2.0]
[1737599741818,3.11055,3214.9,3214.3,5.11108]
[1737599742407,3.72519794,3214.9,3214.4,0.04763893]
[1737599742716,3.72519794,3214.9,3214.5,3.11082]
[1737599742717,0.61464794,3214.9,3214.5,3.11082]
[1737599742918,0.7855,3215.5,3214.8,2.0]
[1737599743129,3.11011,3215.4,3214.8,5.11059]
[1737599743291,3.11011,3215.4,3214.9,0.04767954]
[1737599743482,0.63261974,3215.3,3214.9,3.15818954]
[1737599744383,0.63261974,3215.3,3215.0,3.11034]
[1737599744583,0.63261974,3215.3,3214.9,3.15818954]
[1737599744907,0.63261974,3215.3,3215.0,0.04767954]
[1737599745223,0.63261974,3215.3,3214.6,0.7549]
[1737599745224,3.89582,3215.1,3214.6,2.0]
[1737599745408,0.03888269,3215.0,3214.6,2.0]
[1737599745830,3.11053,3214.9,3214.6,2.0]
[1737599746133,3.11053,3214.9,3214.3,0.7549]
[1737599746134,3.11071,3214.7,3214.2,2.0]
[1737599746272,3.11109,3214.4,3213.8,2.0]
[1737599746477,0.03889057,3214.3,3213.8,2.0]
[1737599746711,0.03889057,3214.3,3213.8,5.0]
[1737599746869,3.11109,3214.4,3213.8,8.11156]
[1737599747222,0.82438957,3214.5,3213.8,5.11156]
[1737599747770,0.7855,3214.5,3213.9,3.11141]
[1737599747937,3.1108,3214.6,3213.9,3.11141]
[1737599748127,3.1108,3214.6,3214.0,3.11138]
[1737599748520,0.03888957,3214.5,3213.8,5.0]
[1737599748863,3.14980957,3214.5,3213.8,8.11153]
[1737599749675,3.14980957,3214.5,3213.9,3.11147]
[1737599750072,3.11114,3214.3,3213.8,5.0]
[1737599750279,3.11092,3214.5,3213.8,5.0]
[1737599750438,3.11092,3214.5,3213.8,8.11155]
[1737599750772,0.60813773,3214.6,3214.0,3.11136]
[1737599751139,3.71894773,3214.6,3214.0,3.11136]
[1737599751469,1.3696545,3214.6,3214.0,3.11136]
[1737599752174,4.4804745,3214.6,3214.0,3.11136]
[1737599753239,1.3696545,3214.6,3214.0,3.11136]
[1737599753672,0.60813773,3214.6,3214.2,2.0]
[1737599753843,3.11054,3214.9,3214.2,5.86528]
[1737599754043,0.62332427,3214.7,3214.2,5.86528]
[1737599755677,0.7745,3214.4,3213.8,2.0]
[1737599755877,0.0388913,3214.3,3213.5,0.7541]
[1737599756042,0.0388913,3214.3,3213.4,2.0]
[1737599756043,3.1115,3213.9,3213.4,2.0]
[1737599756245,3.11145,3214.0,3213.4,2.0]
[1737599756479,0.7745,3214.4,3213.4,5.11196]
[1737599756480,3.11133,3214.1,3213.4,5.11196]
[1737599757053,3.11151,3213.9,3213.4,2.0]
[1737599757253,0.03889652,3213.8,3213.4,2.0]
[1737599757457,0.03889652,3213.8,3213.5,0.04403271]
[1737599758679,3.11144,3214.0,3213.5,0.04403271]
[1737599759044,3.11148,3213.9,3213.5,0.04403271]
[1737599759378,0.03889711,3213.8,3213.5,0.04403271]
[1737599759576,3.11148,3213.9,3213.5,0.04403271]
[1737599759776,3.733573,3214.1,3213.5,0.04403271]
[1737599759957,3.733573,3214.1,3213.6,3.11173]
[1737599759958,0.61556936,3214.0,3213.6,3.11173]
[1737599760359,0.61556936,3214.0,3213.7,0.04403271]
[1737599761695,3.11113,3214.3,3213.7,3.15569271]
[1737599762049,0.7745,3214.4,3213.8,5.11157]
[1737599762449,3.11138,3214.0,3213.9,0.04397176]
[1737599762710,3.15027704,3214.0,3213.4,2.0]
[1737599762877,3.11153,3213.9,3213.4,2.0]
[1737599763059,0.03889709,3213.8,3213.5,0.04397176]
[1737599763459,3.11159,3213.8,3213.5,0.04397176]
[1737599763661,0.03889709,3213.9,3213.5,0.04397176]
[1737599763978,0.03889709,3213.9,3212.8,35.0]
[1737599763979,3.11167,3213.7,3212.7,2.0]
[1737599764155,3.11125,3214.2,3212.7,2.0]
[1737599764156,3.11238,3213.0,3212.7,2.0]
[1737599764352,0.03890752,3212.9,3212.7,2.0]
[1737599766383,3.11254,3212.8,3212.7,2.0]
[1737599766596,0.7988,3213.1,3212.7,2.0]
[1737599767783,1.43338276,3213.1,3212.7,2.0]
[1737599768405,0.03890747,3213.0,3212.7,2.0]
[1737599768560,3.15131747,3213.0,3212.7,2.0]
[1737599769288,0.03890747,3213.0,3212.7,2.0]
[1737599769493,3.15127747,3213.0,3212.7,2.0]
[1737599769862,3.11245,3212.9,3212.7,2.0]
[1737599770063,0.03890859,3212.8,3212.7,2.0]
[1737599771099,0.85407524,3212.9,3212.7,2.0]
[1737599771720,0.81516665,3212.9,3212.8,0.04232369]
[1737599772014,0.85407519,3212.9,3212.7,2.0]
[1737599772211,0.85407519,3212.9,3212.8,0.04232369]
[1737599772415,3.96652519,3212.9,3212.8,0.04232369]
[1737599772564,3.96652519,3212.9,3212.7,2.0]
[1737599772765,3.96652519,3212.9,3212.8,0.04232369]
[1737599773013,0.85407519,3212.9,3212.7,2.0]
[1737599773213,0.85407519,3212.9,3212.8,0.04232369]
[1737599773509,0.85407519,3212.9,3212.7,2.0]
[1737599773806,0.85407519,3212.9,3212.8,0.04232369]
[1737599774295,0.85407519,3212.9,3212.7,2.0]
[1737599774601,0.81516665,3212.9,3212.8,0.04232369]
[1737599774811,0.03890852,3213.0,3212.8,0.04232369]
[1737599775022,0.03890769,3213.0,3212.7,2.0]
[1737599775165,0.03890769,3213.0,3212.9,0.04232369]
[1737599775469,3.15125769,3213.0,3212.7,2.0]
[1737599775796,3.11235,3213.0,3212.7,2.0]
[1737599775997,3.11235,3213.0,3212.8,0.04232369]
[1737599776303,3.11235,3213.0,3212.7,2.0]
[1737599776603,0.03890857,3212.9,3212.8,0.04232369]
[1737599776989,0.03890857,3212.9,3212.7,2.0]
[1737599777188,0.03890857,3212.9,3212.8,0.04232369]
[1737599777385,0.03890857,3212.9,3212.7,2.0]
[1737599777704,0.03890857,3212.9,3212.8,0.04232369]
[1737599778067,3.11235,3213.0,3212.7,2.0]
[1737599778267,3.74685276,3213.1,3212.8,0.04232369]
[1737599778467,0.03890849,3213.0,3212.8,0.04232369]
[1737599778669,3.74685276,3213.1,3212.7,2.0]
[1737599779183,0.03890855,3213.0,3212.8,0.04238469]
[1737599779499,3.11237,3213.0,3212.7,2.0]
[1737599779702,3.11237,3213.0,3212.9,0.04238469]
[1737599779885,3.1512784,3213.0,3212.7,2.0]
[1737599780083,3.11237,3213.0,3212.7,2.0]
[1737599780288,3.11237,3213.0,3212.8,0.04238469]
[1737599780482,3.1512785,3213.0,3212.8,0.04238469]
[1737599780688,0.63458276,3213.1,3212.7,2.0]
[1737599781269,0.63458276,3213.1,3212.8,0.04247109]
[1737599781494,0.63458276,3213.1,3212.7,5.11263]
[1737599781707,0.63458276,3213.1,3212.8,0.04246601]
[1737599781904,3.74687276,3213.1,3212.7,2.0]
[1737599782097,3.78577855,3213.1,3212.9,0.04246601]
[1737599782295,0.67348855,3213.1,3212.7,2.0]
[1737599782495,0.63458276,3213.1,3212.8,0.04237452]
[1737599782794,0.63458276,3213.1,3212.7,5.11257]
[1737599782993,0.63458276,3213.1,3212.9,0.04237452]
[1737599783199,0.63458276,3213.1,3212.8,3.11254]
[1737599783396,0.63458276,3213.1,3213.0,0.04237452]
[1737599783908,0.63458276,3213.1,3212.7,2.0]
[1737599784107,3.11237,3213.0,3212.7,2.0]
[1737599784310,0.7641,3213.9,3213.2,2.0]
[1737599784513,0.7641,3213.9,3212.8,3.87104]
[1737599784514,3.11184,3213.6,3213.0,3.11229]
[1737599784714,0.67257145,3213.5,3213.0,3.11229]
[1737599785798,0.67257145,3213.5,3212.8,2.7585]
[1737599785976,0.7641,3213.3,3212.5,0.7585]
[1737599786319,3.11265,3212.7,3212.2,0.7585]
[1737599786494,0.0389123,3212.6,3212.2,3.8716]
[1737599786684,3.11248,3212.9,3212.2,3.8716]
[1737599786890,0.311248,3212.8,3212.2,3.8716]
[1737599787097,0.0389119,3212.7,3212.2,0.7585]
[1737599787434,3.1515619,3212.7,3212.3,0.03641122]
[1737599787630,3.15156193,3212.7,3212.3,0.03641122]
[1737599787916,3.15156193,3212.7,3212.4,0.03641122]
[1737599788079,0.34628099,3212.6,3212.2,0.7585]
[1737599788280,3.15156193,3212.7,3212.3,0.03641122]
[1737599788487,3.15156193,3212.7,3212.2,0.7585]
[1737599788883,3.15156193,3212.7,3212.3,0.03641122]
[1737599789217,3.15156193,3212.7,3212.2,0.7585]
[1737599789513,3.11265,3212.7,3212.2,0.7585]
[1737599789716,0.311248,3212.8,3212.3,0.03679209]
[1737599789921,3.11242,3213.0,3212.3,3.14978209]
[1737599790107,3.11242,3213.0,3212.4,0.03679209]
[1737599790990,0.63699461,3212.5,3212.4,0.03679209]
[1737599791983,3.11217,3213.2,3212.4,2.03679209]
[1737599792188,3.11217,3213.2,3212.4,5.14972209]
[1737599792505,3.11217,3213.2,3212.5,3.11282]
[1737599792896,3.112,3213.4,3212.7,3.11263]
[1737599793088,3.810789,3213.4,3212.8,0.7585]
[1737599793291,0.61551868,3212.9,3212.8,3.87104]
[1737599793792,3.11179,3213.6,3212.9,3.11245]
[1737599793992,3.11179,3213.6,3213.0,3.11229]
[1737599794192,3.11123,3214.2,3213.3,0.8232]
[1737599794193,3.11142,3214.0,3213.3,0.8232]
[1737599794393,0.8199,3214.2,3213.3,3.93525]
[1737599794599,0.62255282,3213.7,3213.3,3.93525]
[1737599794799,0.62255282,3213.7,3213.3,0.8232]
[1737599795703,0.66145104,3213.7,3213.3,0.8232]
[1737599796293,0.62255282,3213.7,3213.3,3.93524]
[1737599796511,0.62255282,3213.7,3213.3,0.8232]
[1737599799294,0.62255282,3213.7,3213.3,3.93519]
[1737599799989,0.62255282,3213.7,3213.6,5.11177]
[1737599800395,3.11091,3214.5,3213.8,3.11151]
[1737599800796,0.61666743,3214.5,3214.0,5.11136]
[1737599800990,3.11069,3214.8,3214.2,3.11119]
[1737599801195,0.60770678,3214.6,3214.1,3.0]
[1737599802094,3.71852678,3214.6,3214.0,5.0]
[1737599802425,3.71852678,3214.6,3214.1,0.03603052]
[1737599802746,0.60770678,3214.6,3214.4,2.0]
[1737599803240,0.60770678,3214.6,3214.5,0.03603052]
[1737599803893,3.10992,3215.6,3214.5,0.03603052]
[1737599803894,3.10979,3215.7,3214.8,2.0]
[1737599804135,0.8325,3215.8,3214.9,3.89312]
[1737599804338,3.10918,3216.3,3215.3,0.7827]
[1737599804637,3.10874,3216.8,3215.9,0.7827]
[1737599804638,3.94129,3216.7,3215.9,0.7827]
[1737599804809,3.10889,3216.6,3216.1,2.0]
[1737599805009,3.10889,3216.6,3216.2,0.03569564]
[1737599805211,0.61537886,3216.3,3216.2,0.03569564]
[1737599806101,3.10868,3216.8,3216.2,0.03569564]
[1737599806302,3.419668,3216.7,3216.2,0.03569564]
[1737599806526,3.94166,3216.3,3216.2,0.03569564]
[1737599806924,3.94166,3216.3,3215.6,2.0]
[1737599807127,3.94166,3216.3,3216.2,0.03499588]
[1737599807314,0.8325,3216.3,3215.2,5.7827]
[1737599807635,3.10983,3215.7,3215.2,0.7827]
[1737599807799,0.310983,3215.6,3215.0,2.7827]
[1737599808007,3.10967,3215.8,3215.0,5.8931]
[1737599808814,6.21919,3215.9,3215.1,3.11031]
[1737599809018,0.03887401,3215.8,3215.1,3.11031]
[1737599809217,3.10936,3216.1,3215.4,2.0]
[1737599809415,3.10957,3215.9,3215.4,2.0]
[1737599809627,0.61631201,3215.6,3215.4,2.0]
[1737599809820,0.61631201,3215.6,3215.5,0.7827]
[1737599810330,0.03887207,3215.8,3215.1,2.0]
[1737599810715,3.10925,3216.2,3215.5,2.0]
[1737599811040,3.10947,3216.0,3215.5,2.0]
[1737599811210,3.731342,3216.0,3215.5,2.0]
[1737599811620,0.61538365,3215.7,3215.5,2.0]
[1737599812322,3.10903,3216.5,3216.0,2.0]
[1737599812646,0.8325,3217.1,3216.0,2.0]
[1737599812853,3.10897,3216.5,3216.0,2.0]
[1737599813049,0.34976228,3216.4,3216.0,2.0]
[1737599813230,0.63733721,3216.1,3215.6,2.7827]
[1737599814554,0.63733721,3216.1,3215.7,3.10967]
[1737599814856,3.10865,3216.9,3216.1,0.7827]
[1737599815149,0.310865,3216.8,3216.2,3.10924]
[1737599815376,3.94091,3217.1,3216.5,2.0]
[1737599815723,0.63198875,3217.0,3216.5,2.0]
[1737599816134,3.14743781,3216.9,3216.5,2.0]
[1737599816333,3.14743781,3216.9,3216.1,0.7827]
[1737599816334,3.94127,3216.7,3216.1,0.7827]
[1737599816528,3.14781391,3216.6,3216.1,0.7827]
[1737599816955,0.03886391,3216.6,3216.1,0.7827]
[1737599817154,0.4368773,3216.6,3216.1,0.7827]
[1737599817473,0.4368773,3216.6,3216.2,0.0323482]
[1737599817673,0.39801339,3216.6,3216.2,0.0323482]
[1737599817972,3.10858,3216.9,3215.9,2.7827]
[1737599818138,3.10858,3216.9,3216.1,3.10934]
[1737599818719,3.10858,3216.9,3216.2,0.0323482]
[1737599820263,0.03886272,3216.8,3216.2,0.0323482]
[1737599820474,3.10916,3216.3,3216.2,0.0323482]
[1737599820678,3.94176,3216.2,3215.5,2.7827]
[1737599820982,3.94177,3216.2,3215.5,2.7827]
[1737599821126,0.03887043,3216.1,3215.5,2.7827]
[1737599821627,0.8325,3216.2,3215.5,2.7827]
[1737599822056,0.8325,3216.2,3215.5,5.89259]
[1737599822263,4.36432054,3216.3,3215.5,5.89259]
[1737599822560,1.25516054,3216.3,3215.5,2.7827]
[1737599822748,0.63333954,3216.3,3215.8,3.10963]
[1737599822950,0.63333954,3216.3,3215.9,5.10951]
[1737599823462,0.63333954,3216.3,3215.9,2.0]
[1737599823632,0.63333954,3216.3,3216.1,3.89199]
[1737599823829,0.63333954,3216.3,3216.2,3.10925]
[1737599824159,0.63333954,3216.3,3216.2,6.10925]
[1737599824386,0.8325,3217.1,3216.5,2.0]
[1737599824562,3.10827,3217.3,3216.5,2.0]
[1737599824730,3.10829,3217.2,3216.5,2.0]
[1737599824929,0.61791953,3216.9,3216.5,2.0]
[1737599825130,0.7574,3216.7,3215.9,2.0]
[1737599825435,3.10903,3216.5,3215.9,2.0]
[1737599826432,0.7574,3216.7,3215.9,2.0]
[1737599826767,0.7574,3216.7,3215.9,5.10945]
[1737599827265,0.03886376,3216.6,3215.9,5.10945]
[1737599827463,4.31458995,3216.7,3215.9,5.10945]
[1737599827768,3.1088,3216.7,3216.0,3.10944]
[1737599828066,3.10916,3216.3,3215.5,2.0]
[1737599828270,3.53485554,3216.2,3215.5,2.0]
[1737599828485,3.10942,3216.1,3215.5,5.0]
[1737599828632,3.86695,3215.9,3215.5,2.0]
[1737599828989,0.7574,3215.9,3215.1,2.8151]
[1737599829289,3.10984,3215.6,3214.8,0.8151]
[1737599829439,0.03887831,3215.5,3214.8,0.8151]
[1737599829787,3.11011,3215.4,3214.8,0.8151]
[1737599829992,0.03888027,3215.3,3214.8,0.8151]
[1737599830133,0.65882185,3215.3,3214.9,2.0]
[1737599830838,0.65882185,3215.3,3214.8,0.8151]
[1737599831474,0.61994005,3215.3,3214.9,2.0]
[1737599832051,0.61994005,3215.3,3214.8,0.8151]
[1737599832387,4.48752005,3215.3,3215.0,0.030111]
[1737599832573,0.48763343,3215.2,3214.5,5.92599]
[1737599832772,0.03888143,3215.2,3214.5,5.92599]
[1737599833074,0.61994005,3215.3,3214.9,2.0]
[1737599833672,0.61994005,3215.3,3215.0,0.030111]
[1737599833852,0.03887898,3215.2,3215.0,0.030111]
[1737599834258,0.03887898,3215.2,3214.6,2.0]
[1737599834496,0.03888177,3215.2,3215.1,0.03079997]
[1737599834694,0.03888177,3215.2,3214.6,2.0]
[1737599834874,0.03888177,3215.2,3215.1,0.03079997]
[1737599835046,3.73014005,3215.3,3214.8,3.11054]
[1737599835047,0.61994005,3215.3,3214.8,3.11054]
[1737599835246,0.61994005,3215.3,3215.1,0.03079997]
[1737599835497,0.61994005,3215.3,3214.7,3.11061]
[1737599835697,3.86776,3215.1,3214.6,2.0]
[1737599835843,0.03888429,3215.0,3214.6,2.0]
[1737599836543,3.11076,3214.7,3214.2,2.0]
[1737599836745,0.03888732,3214.6,3214.2,2.0]
[1737599836988,3.11072,3214.7,3214.2,2.0]
[1737599837303,3.11072,3214.7,3213.8,5.92665]
[1737599837304,3.11095,3214.5,3213.8,5.92665]
[1737599837450,0.03888961,3214.4,3213.8,5.92665]
[1737599838275,0.0388896,3214.5,3213.9,3.11145]
[1737599838472,0.0388896,3214.5,3213.8,3.92665]
[1737599838676,0.69643364,3214.5,3213.8,0.8151]
[1737599838867,3.86844,3214.4,3213.7,2.0]
[1737599839273,0.03889342,3214.3,3213.7,2.0]
[1737599839467,3.86844,3214.4,3213.7,2.0]